[Event "*** Titled Tuesday Blitz"]
[Site "Chess.com"]
[Date "2019.04.02"]
[Round "5"]
[White "INDIAN-ELEPHANT"]
[Black "Genghis_K"]
[Result "1-0"]
[WhiteElo "2726"]
[BlackElo "2842"]
[TimeControl "180+2"]
[EndTime "15:00:36 PDT"]
[Termination "INDIAN-ELEPHANT won by checkmate"]

1. d4 {[%clk 0:03:01.9]} 1... Nf6 {[%clk 0:03:00.1]} 2. Nf3 {[%clk 0:03:02.8]}
2... c5 {[%clk 0:03:00.7]} 3. c3 {[%clk 0:03:02.4]} 3... Qc7 {[%clk 0:02:59.2]}
4. g3 {[%clk 0:02:57]} 4... g6 {[%clk 0:02:58.7]} 5. Bg2 {[%clk 0:02:57.7]} 5...
Bg7 {[%clk 0:02:59.7]} 6. Bf4 {[%clk 0:02:58.6]} 6... d6 {[%clk 0:03:00.6]} 7.
O-O {[%clk 0:02:58.8]} 7... O-O {[%clk 0:03:02.1]} 8. Na3 {[%clk 0:02:59.8]}
8... a6 {[%clk 0:03:01.2]} 9. Rc1 {[%clk 0:03:00.4]} 9... Bf5 {[%clk 0:02:51.1]}
10. Re1 {[%clk 0:02:50.5]} 10... Be4 {[%clk 0:02:46.4]} 11. Nc4 {[%clk
0:02:37.2]} 11... b5 {[%clk 0:02:17.7]} 12. Ncd2 {[%clk 0:02:37.9]} 12... Bb7
{[%clk 0:02:16.3]} 13. e4 {[%clk 0:02:38]} 13... Nh5 {[%clk 0:02:11.3]} 14. Be3
{[%clk 0:02:36.6]} 14... e5 {[%clk 0:02:10.7]} 15. d5 {[%clk 0:02:34.7]} 15...
c4 {[%clk 0:02:06.1]} 16. b3 {[%clk 0:02:33.9]} 16... cxb3 {[%clk 0:02:00.8]}
17. axb3 {[%clk 0:02:35.8]} 17... Nd7 {[%clk 0:02:02.3]} 18. b4 {[%clk
0:02:35.9]} 18... Nb6 {[%clk 0:01:55.9]} 19. Bf1 {[%clk 0:02:36.6]} 19... f5
{[%clk 0:01:48.5]} 20. c4 {[%clk 0:02:31.4]} 20... bxc4 {[%clk 0:01:40.8]} 21.
Nxc4 {[%clk 0:02:30.7]} 21... Nxc4 {[%clk 0:01:41.4]} 22. Bxc4 {[%clk
0:02:31.6]} 22... f4 {[%clk 0:01:23.2]} 23. Bd2 {[%clk 0:02:27.8]} 23... Qe7
{[%clk 0:01:18.2]} 24. g4 {[%clk 0:02:11.3]} 24... Nf6 {[%clk 0:01:06]} 25. Ng5
{[%clk 0:02:12.4]} 25... f3 {[%clk 0:00:46.3]} 26. Qxf3 {[%clk 0:02:08.7]} 26...
Nh5 {[%clk 0:00:44.4]} 27. Qh3 {[%clk 0:02:06.8]} 27... Nf4 {[%clk 0:00:46]} 28.
Qxh7# {[%clk 0:02:07.2]} 1-0

[Event "*** Titled Tuesday Blitz"]
[Site "Chess.com"]
[Date "2019.04.02"]
[Round "5"]
[White "wannabe2700"]
[Black "regular_legs"]
[Result "1-0"]
[WhiteElo "2604"]
[BlackElo "2439"]
[TimeControl "180+2"]
[EndTime "15:01:05 PDT"]
[Termination "wannabe2700 won by resignation"]

1. d4 {[%clk 0:03:01.9]} 1... Nf6 {[%clk 0:02:59.8]} 2. c4 {[%clk 0:03:02.9]}
2... e6 {[%clk 0:03:01.1]} 3. Nf3 {[%clk 0:03:03.3]} 3... d5 {[%clk 0:03:01.8]}
4. g3 {[%clk 0:03:03.6]} 4... dxc4 {[%clk 0:03:02.3]} 5. Bg2 {[%clk 0:03:04.2]}
5... c6 {[%clk 0:03:03.3]} 6. O-O {[%clk 0:03:02.6]} 6... b5 {[%clk 0:03:03.5]}
7. Ne5 {[%clk 0:02:32.3]} 7... Bb7 {[%clk 0:03:04.2]} 8. b3 {[%clk 0:02:29]}
8... cxb3 {[%clk 0:03:04.2]} 9. axb3 {[%clk 0:02:30.9]} 9... Bb4 {[%clk
0:02:48.7]} 10. e3 {[%clk 0:02:30.1]} 10... O-O {[%clk 0:02:48.7]} 11. Qc2
{[%clk 0:02:25.8]} 11... Qb6 {[%clk 0:02:47.5]} 12. Ba3 {[%clk 0:02:16.4]} 12...
Bxa3 {[%clk 0:02:47.9]} 13. Rxa3 {[%clk 0:02:16.1]} 13... a5 {[%clk 0:02:46.2]}
14. Nd2 {[%clk 0:02:15.7]} 14... Nbd7 {[%clk 0:02:39.7]} 15. Nxc6 {[%clk
0:02:11.6]} 15... Kh8 {[%clk 0:02:20.5]} 16. Ne5 {[%clk 0:01:53.5]} 16... Nxe5
{[%clk 0:02:08.6]} 17. dxe5 {[%clk 0:01:29.6]} 17... Nd5 {[%clk 0:02:08.8]} 18.
Ne4 {[%clk 0:01:27.1]} 18... Rfc8 {[%clk 0:02:00.5]} 19. Qd2 {[%clk 0:01:15]}
19... Nc3 {[%clk 0:01:32.8]} 20. Nd6 {[%clk 0:01:08.9]} 20... Bxg2 {[%clk
0:01:21.6]} 21. Nxc8 {[%clk 0:01:07.9]} 21... Qc6 {[%clk 0:00:52.1]} 22. Qd8+
{[%clk 0:01:06.6]} 1-0

[Event "*** Titled Tuesday Blitz"]
[Site "Chess.com"]
[Date "2019.04.02"]
[Round "5"]
[White "GukeshDommaraju"]
[Black "IakovUlivar"]
[Result "1/2-1/2"]
[WhiteElo "2616"]
[BlackElo "2527"]
[TimeControl "180+2"]
[EndTime "15:01:30 PDT"]
[Termination "Game drawn by repetition"]

1. Nf3 {[%clk 0:03:01.9]} 1... Nf6 {[%clk 0:03:00.4]} 2. g3 {[%clk 0:03:03.1]}
2... g6 {[%clk 0:03:00.6]} 3. Bg2 {[%clk 0:03:04.2]} 3... Bg7 {[%clk 0:03:01.9]}
4. O-O {[%clk 0:03:05.7]} 4... O-O {[%clk 0:03:03]} 5. c4 {[%clk 0:03:07.2]}
5... c6 {[%clk 0:02:52.3]} 6. b3 {[%clk 0:03:05.6]} 6... d5 {[%clk 0:02:46.6]}
7. Bb2 {[%clk 0:03:06.3]} 7... Bg4 {[%clk 0:02:40.9]} 8. d4 {[%clk 0:03:04.7]}
8... Bxf3 {[%clk 0:02:34.4]} 9. Bxf3 {[%clk 0:03:06.5]} 9... e6 {[%clk
0:02:31.8]} 10. Nc3 {[%clk 0:03:04.9]} 10... Nbd7 {[%clk 0:02:28.2]} 11. e3
{[%clk 0:03:03.6]} 11... Re8 {[%clk 0:02:23.2]} 12. Rc1 {[%clk 0:02:57]} 12...
a6 {[%clk 0:02:15.8]} 13. c5 {[%clk 0:02:48.3]} 13... e5 {[%clk 0:02:13.7]} 14.
b4 {[%clk 0:02:49.2]} 14... exd4 {[%clk 0:02:04]} 15. exd4 {[%clk 0:02:51.1]}
15... Nf8 {[%clk 0:02:02.8]} 16. Na4 {[%clk 0:02:42.8]} 16... N6d7 {[%clk
0:01:56.8]} 17. Bg4 {[%clk 0:02:31.8]} 17... Ne6 {[%clk 0:01:55]} 18. Re1 {[%clk
0:02:27.2]} 18... Qf6 {[%clk 0:01:55.5]} 19. Rc2 {[%clk 0:02:17.4]} 19... Re7
{[%clk 0:01:55.3]} 20. Rce2 {[%clk 0:02:15.3]} 20... Rae8 {[%clk 0:01:56.6]} 21.
h4 {[%clk 0:01:36.9]} 21... h5 {[%clk 0:01:54.5]} 22. Bh3 {[%clk 0:01:38]} 22...
Nef8 {[%clk 0:01:18.6]} 23. Nc3 {[%clk 0:01:15.6]} 23... Ne6 {[%clk 0:01:11.7]}
24. Na4 {[%clk 0:00:36.9]} 24... Nef8 {[%clk 0:01:11.8]} 25. Nc3 {[%clk
0:00:37.7]} 25... Ne6 {[%clk 0:01:12.5]} 26. Na4 {[%clk 0:00:38.8]} 26... Nef8
{[%clk 0:01:13.3]} 1/2-1/2

[Event "*** Titled Tuesday Blitz"]
[Site "Chess.com"]
[Date "2019.04.02"]
[Round "5"]
[White "JSPrepz"]
[Black "WanderingPuppet"]
[Result "1-0"]
[WhiteElo "2711"]
[BlackElo "2398"]
[TimeControl "180+2"]
[EndTime "15:01:40 PDT"]
[Termination "JSPrepz won by resignation"]

1. f4 {[%clk 0:03:01.9]} 1... Nf6 {[%clk 0:02:40.9]} 2. c4 {[%clk 0:02:59.4]}
2... g6 {[%clk 0:02:37.9]} 3. a4 {[%clk 0:02:58.6]} 3... Bg7 {[%clk 0:02:38.4]}
4. h4 {[%clk 0:02:59]} 4... c5 {[%clk 0:02:21.6]} 5. d3 {[%clk 0:02:57]} 5...
Nc6 {[%clk 0:02:21.6]} 6. e3 {[%clk 0:02:56.7]} 6... d6 {[%clk 0:02:12]} 7. Nc3
{[%clk 0:02:55.5]} 7... O-O {[%clk 0:02:06.9]} 8. Nf3 {[%clk 0:02:55.1]} 8...
Bg4 {[%clk 0:02:07]} 9. Be2 {[%clk 0:02:55.3]} 9... Re8 {[%clk 0:01:47.6]} 10.
Ng5 {[%clk 0:02:23.6]} 10... Bxe2 {[%clk 0:01:37.4]} 11. Qxe2 {[%clk 0:02:25.5]}
11... e5 {[%clk 0:01:30.7]} 12. f5 {[%clk 0:02:11.7]} 12... gxf5 {[%clk
0:01:06.9]} 13. Qf3 {[%clk 0:02:05.1]} 13... h6 {[%clk 0:01:00.8]} 14. Qxf5
{[%clk 0:02:02]} 14... hxg5 {[%clk 0:00:56.9]} 15. hxg5 {[%clk 0:02:03.9]} 15...
Qd7 {[%clk 0:00:44.8]} 16. Qf3 {[%clk 0:01:48.7]} 16... Ng4 {[%clk 0:00:39.8]}
17. Nd5 {[%clk 0:01:48]} 17... e4 {[%clk 0:00:35.7]} 18. dxe4 {[%clk 0:01:42.7]}
18... Nb4 {[%clk 0:00:30.4]} 19. Bd2 {[%clk 0:01:41.9]} 19... Nxd5 {[%clk
0:00:24.9]} 20. cxd5 {[%clk 0:01:41]} 20... Ne5 {[%clk 0:00:23.6]} 21. Qh5
{[%clk 0:01:41.3]} 21... Qg4 {[%clk 0:00:23.2]} 22. Qh7+ {[%clk 0:01:38.4]}
22... Kf8 {[%clk 0:00:24.6]} 23. Bc3 {[%clk 0:01:36.9]} 23... Qxg2 {[%clk
0:00:22.9]} 24. O-O-O {[%clk 0:01:37.9]} 24... b5 {[%clk 0:00:17.1]} 25. axb5
{[%clk 0:01:36.2]} 25... c4 {[%clk 0:00:18.3]} 26. Kb1 {[%clk 0:01:36.3]} 26...
Rab8 {[%clk 0:00:19.1]} 27. Rhf1 {[%clk 0:01:33.6]} 27... Nd3 {[%clk 0:00:18]}
28. Qxg7+ {[%clk 0:01:33.1]} 1-0

[Event "*** Titled Tuesday Blitz"]
[Site "Chess.com"]
[Date "2019.04.02"]
[Round "5"]
[White "1995Tiger"]
[Black "NCchamp"]
[Result "0-1"]
[WhiteElo "2047"]
[BlackElo "2184"]
[TimeControl "180+2"]
[EndTime "15:01:59 PDT"]
[Termination "NCchamp won by resignation"]

1. e4 {[%clk 0:03:01.9]} 1... c5 {[%clk 0:03:00.4]} 2. Nf3 {[%clk 0:03:02.8]}
2... e6 {[%clk 0:03:01.8]} 3. d4 {[%clk 0:03:03.2]} 3... cxd4 {[%clk 0:03:03.7]}
4. Nxd4 {[%clk 0:03:04.8]} 4... Nf6 {[%clk 0:03:05.3]} 5. Nc3 {[%clk 0:03:05.8]}
5... Nc6 {[%clk 0:03:06.1]} 6. Ndb5 {[%clk 0:03:03.3]} 6... Bc5 {[%clk
0:03:06.9]} 7. Nd6+ {[%clk 0:02:58.3]} 7... Ke7 {[%clk 0:03:07.7]} 8. Nxc8+
{[%clk 0:02:58.4]} 8... Rxc8 {[%clk 0:03:08.2]} 9. Bd3 {[%clk 0:03:00]} 9... d5
{[%clk 0:03:08.4]} 10. O-O {[%clk 0:02:57.9]} 10... dxe4 {[%clk 0:03:02.1]} 11.
Nxe4 {[%clk 0:02:58.4]} 11... Nxe4 {[%clk 0:02:56]} 12. Bxe4 {[%clk 0:02:58.6]}
12... Qxd1 {[%clk 0:02:57.9]} 13. Rxd1 {[%clk 0:02:59.2]} 13... Rhd8 {[%clk
0:02:56.1]} 14. Bf4 {[%clk 0:02:32.4]} 14... b6 {[%clk 0:02:20.9]} 15. c3 {[%clk
0:02:26.2]} 15... a5 {[%clk 0:02:16.7]} 16. Kf1 {[%clk 0:02:26.8]} 16... g6
{[%clk 0:02:02.8]} 17. Rxd8 {[%clk 0:02:19.3]} 17... Nxd8 {[%clk 0:01:59.1]} 18.
a4 {[%clk 0:02:17.5]} 18... f6 {[%clk 0:01:57.7]} 19. Rd1 {[%clk 0:02:17.7]}
19... e5 {[%clk 0:01:54.3]} 20. Bg3 {[%clk 0:02:14.4]} 20... Ne6 {[%clk
0:01:47.8]} 21. Bc2 {[%clk 0:02:10.3]} 21... Rc7 {[%clk 0:01:41.4]} 22. f3
{[%clk 0:02:09.4]} 22... Rd7 {[%clk 0:01:38.8]} 23. Rxd7+ {[%clk 0:02:10.2]}
23... Kxd7 {[%clk 0:01:40.7]} 24. Ke2 {[%clk 0:02:10.6]} 24... Kc6 {[%clk
0:01:41.3]} 25. Bb3 {[%clk 0:02:11.6]} 25... Kd6 {[%clk 0:01:31.9]} 26. Bc4
{[%clk 0:01:47.9]} 26... f5 {[%clk 0:01:26.4]} 27. Be1 {[%clk 0:01:46.9]} 27...
Nf4+ {[%clk 0:01:24.5]} 28. Kf1 {[%clk 0:01:48]} 28... Nd5 {[%clk 0:01:24.3]}
29. g3 {[%clk 0:01:46.3]} 29... Ne3+ {[%clk 0:01:25.1]} 30. Ke2 {[%clk
0:01:44.2]} 30... Nxc4 {[%clk 0:01:27]} 31. b3 {[%clk 0:01:37.9]} 31... Ne3
{[%clk 0:01:27.1]} 32. c4 {[%clk 0:01:34.2]} 32... f4 {[%clk 0:01:26.2]} 33. g4
{[%clk 0:01:33.7]} 33... Bb4 {[%clk 0:01:21.4]} 34. Bf2 {[%clk 0:01:32.2]} 34...
Bc3 {[%clk 0:01:22.4]} 35. Bxe3 {[%clk 0:01:31.7]} 35... fxe3 {[%clk 0:01:23.2]}
36. Kxe3 {[%clk 0:01:33]} 36... Kc5 {[%clk 0:01:24.6]} 37. Kd3 {[%clk 0:01:32]}
37... Kb4 {[%clk 0:01:25.1]} 38. h4 {[%clk 0:01:26.4]} 38... Kxb3 {[%clk
0:01:22.4]} 39. h5 {[%clk 0:01:26.3]} 39... gxh5 {[%clk 0:01:22.2]} 40. gxh5
{[%clk 0:01:27.4]} 40... Ba1 {[%clk 0:01:21.1]} 41. h6 {[%clk 0:01:27]} 41...
Kxa4 {[%clk 0:01:21.9]} 42. Ke4 {[%clk 0:01:27.4]} 42... Kb3 {[%clk 0:01:22.8]}
43. Kd5 {[%clk 0:01:28.8]} 43... a4 {[%clk 0:01:23.5]} 44. c5 {[%clk 0:01:30.6]}
44... bxc5 {[%clk 0:01:24.4]} 45. Ke6 {[%clk 0:01:31.2]} 45... a3 {[%clk
0:01:25.4]} 46. Kf7 {[%clk 0:01:32.7]} 46... a2 {[%clk 0:01:26.6]} 47. Kg7
{[%clk 0:01:33.5]} 47... e4+ {[%clk 0:01:27.7]} 48. Kxh7 {[%clk 0:01:34.8]}
48... exf3 {[%clk 0:01:28.9]} 49. Kg8 {[%clk 0:01:36.3]} 49... f2 {[%clk
0:01:30.2]} 50. h7 {[%clk 0:01:38]} 50... f1=Q {[%clk 0:01:31.1]} 51. h8=Q
{[%clk 0:01:39]} 51... Bxh8 {[%clk 0:01:31.4]} 52. Kxh8 {[%clk 0:01:40.5]} 52...
Qf8+ {[%clk 0:01:30.9]} 0-1

[Event "*** Titled Tuesday Blitz"]
[Site "Chess.com"]
[Date "2019.04.02"]
[Round "5"]
[White "FairChess_on_YouTube"]
[Black "martinmartinez95"]
[Result "1-0"]
[WhiteElo "3055"]
[BlackElo "2561"]
[TimeControl "180+2"]
[EndTime "15:02:01 PDT"]
[Termination "FairChess_on_YouTube won by resignation"]

1. d4 {[%clk 0:02:59.3]} 1... Nf6 {[%clk 0:02:55.4]} 2. c4 {[%clk 0:02:59.9]}
2... g6 {[%clk 0:02:55.7]} 3. Nc3 {[%clk 0:03:00.2]} 3... Bg7 {[%clk 0:02:54]}
4. e4 {[%clk 0:03:00.3]} 4... d6 {[%clk 0:02:55.4]} 5. h3 {[%clk 0:02:58.9]}
5... O-O {[%clk 0:02:55.6]} 6. Be3 {[%clk 0:02:59.8]} 6... e5 {[%clk 0:02:55.7]}
7. d5 {[%clk 0:03:00]} 7... a5 {[%clk 0:02:56.7]} 8. Bd3 {[%clk 0:02:58.6]} 8...
Nfd7 {[%clk 0:02:57.5]} 9. g4 {[%clk 0:02:54.8]} 9... Na6 {[%clk 0:02:58.6]} 10.
Nge2 {[%clk 0:02:53.9]} 10... Ndc5 {[%clk 0:02:59]} 11. Bb1 {[%clk 0:02:52.2]}
11... Bd7 {[%clk 0:02:56.4]} 12. Ng3 {[%clk 0:02:48.7]} 12... c6 {[%clk
0:02:47.7]} 13. h4 {[%clk 0:02:44.6]} 13... cxd5 {[%clk 0:02:14.2]} 14. exd5
{[%clk 0:02:45.4]} 14... f5 {[%clk 0:02:07.8]} 15. gxf5 {[%clk 0:02:45]} 15...
gxf5 {[%clk 0:02:07.8]} 16. Nh5 {[%clk 0:02:44.7]} 16... Rf7 {[%clk 0:01:25.6]}
17. Rg1 {[%clk 0:02:34.4]} 17... Qxh4 {[%clk 0:01:17.4]} 18. Bh6 {[%clk
0:02:23.9]} 18... Qh2 {[%clk 0:00:59.1]} 19. Rg5 {[%clk 0:02:09.8]} 19... Re8
{[%clk 0:00:21.6]} 20. Bxg7 {[%clk 0:01:59.1]} 20... h6 {[%clk 0:00:17.9]} 21.
Bxh6+ {[%clk 0:01:38.3]} 21... Kh7 {[%clk 0:00:18.8]} 22. Qg4 {[%clk 0:01:27.9]}
22... Ree7 {[%clk 0:00:03.8]} 23. Rg8 {[%clk 0:01:15.2]} 23... Qh1+ {[%clk
0:00:04.1]} 24. Kd2 {[%clk 0:01:08.8]} 24... Rf6 {[%clk 0:00:03.1]} 25. Nxf6+
{[%clk 0:01:08.2]} 1-0

[Event "*** Titled Tuesday Blitz"]
[Site "Chess.com"]
[Date "2019.04.02"]
[Round "5"]
[White "larajanzelj"]
[Black "tteshan"]
[Result "0-1"]
[WhiteElo "2343"]
[BlackElo "2213"]
[TimeControl "180+2"]
[EndTime "15:02:07 PDT"]
[Termination "tteshan won by resignation"]

1. d4 {[%clk 0:03:00.8]} 1... d5 {[%clk 0:02:57.7]} 2. Nf3 {[%clk 0:03:01.6]}
2... Nf6 {[%clk 0:02:56.7]} 3. c4 {[%clk 0:03:02.5]} 3... dxc4 {[%clk 0:02:56]}
4. e3 {[%clk 0:03:02.6]} 4... Bg4 {[%clk 0:02:57.1]} 5. Bxc4 {[%clk 0:03:01.8]}
5... e6 {[%clk 0:02:54.4]} 6. Qb3 {[%clk 0:02:56.5]} 6... Bxf3 {[%clk
0:02:53.7]} 7. gxf3 {[%clk 0:02:56.1]} 7... Nbd7 {[%clk 0:02:54.8]} 8. Nc3
{[%clk 0:02:42.6]} 8... Nb6 {[%clk 0:02:53.4]} 9. Be2 {[%clk 0:02:39.5]} 9...
Be7 {[%clk 0:02:47.8]} 10. O-O {[%clk 0:02:27.5]} 10... O-O {[%clk 0:02:46.8]}
11. Kh1 {[%clk 0:02:27.6]} 11... Rb8 {[%clk 0:02:42.4]} 12. Rg1 {[%clk
0:02:26.7]} 12... Kh8 {[%clk 0:02:38.6]} 13. a4 {[%clk 0:02:27]} 13... Nbd5
{[%clk 0:02:38.3]} 14. Ne4 {[%clk 0:02:26.1]} 14... Nxe4 {[%clk 0:02:37.7]} 15.
fxe4 {[%clk 0:02:28]} 15... Nf6 {[%clk 0:02:38.6]} 16. e5 {[%clk 0:02:21.2]}
16... Ne4 {[%clk 0:02:38.9]} 17. Rg2 {[%clk 0:02:17.8]} 17... Bh4 {[%clk
0:02:30.3]} 18. Kg1 {[%clk 0:02:01.7]} 18... c5 {[%clk 0:01:58.1]} 19. Qd3
{[%clk 0:01:54.5]} 19... Ng5 {[%clk 0:01:53.4]} 20. Kh1 {[%clk 0:01:30.5]} 20...
Nh3 {[%clk 0:01:51.3]} 21. Qe4 {[%clk 0:01:07.4]} 21... Nxf2+ {[%clk 0:01:49.8]}
22. Rxf2 {[%clk 0:01:07.8]} 22... Bxf2 {[%clk 0:01:51.7]} 23. Bd3 {[%clk
0:01:07.4]} 23... Qh4 {[%clk 0:01:50.2]} 24. Qxh4 {[%clk 0:00:59.2]} 24... Bxh4
{[%clk 0:01:50.2]} 25. a5 {[%clk 0:00:46.1]} 25... a6 {[%clk 0:01:47.6]} 26. Kg2
{[%clk 0:00:45.3]} 26... Rfd8 {[%clk 0:01:46.1]} 27. Ra4 {[%clk 0:00:46]} 27...
Bg5 {[%clk 0:01:44.2]} 28. h4 {[%clk 0:00:28.7]} 28... Bh6 {[%clk 0:01:43.4]}
29. Rc4 {[%clk 0:00:25.9]} 29... cxd4 {[%clk 0:01:43.1]} 30. exd4 {[%clk
0:00:27.8]} 30... Bxc1 {[%clk 0:01:41.4]} 31. Rxc1 {[%clk 0:00:29.7]} 31... Rxd4
{[%clk 0:01:41.7]} 32. Bb1 {[%clk 0:00:27.9]} 32... Rxh4 {[%clk 0:01:39.8]} 33.
Rc7 {[%clk 0:00:28.3]} 33... Kg8 {[%clk 0:01:36.7]} 34. Kg3 {[%clk 0:00:28.2]}
34... Rb4 {[%clk 0:01:37.1]} 35. Rc2 {[%clk 0:00:27.9]} 35... Rb5 {[%clk
0:01:32.9]} 0-1

[Event "*** Titled Tuesday Blitz"]
[Site "Chess.com"]
[Date "2019.04.02"]
[Round "5"]
[White "dreamist"]
[Black "hansen"]
[Result "1-0"]
[WhiteElo "2720"]
[BlackElo "2809"]
[TimeControl "180+2"]
[EndTime "15:02:09 PDT"]
[Termination "dreamist won by resignation"]

1. e4 {[%clk 0:03:01.7]} 1... c5 {[%clk 0:02:56.3]} 2. Nf3 {[%clk 0:03:02.5]}
2... e6 {[%clk 0:02:51.7]} 3. d4 {[%clk 0:03:03]} 3... cxd4 {[%clk 0:02:52.4]}
4. Nxd4 {[%clk 0:03:04.3]} 4... a6 {[%clk 0:02:53.5]} 5. Bd3 {[%clk 0:03:04.5]}
5... Qc7 {[%clk 0:02:48.5]} 6. O-O {[%clk 0:03:00.5]} 6... d6 {[%clk 0:02:49]}
7. b3 {[%clk 0:02:54]} 7... Nf6 {[%clk 0:02:49.3]} 8. Bb2 {[%clk 0:02:54.4]}
8... Nbd7 {[%clk 0:02:44.5]} 9. c4 {[%clk 0:02:49.4]} 9... b6 {[%clk 0:02:43.6]}
10. Nd2 {[%clk 0:02:48.1]} 10... Bb7 {[%clk 0:02:43.9]} 11. Qe2 {[%clk
0:02:45.8]} 11... Be7 {[%clk 0:02:38.2]} 12. f4 {[%clk 0:02:34.6]} 12... O-O
{[%clk 0:02:17.9]} 13. Rae1 {[%clk 0:02:32.2]} 13... g6 {[%clk 0:02:09.5]} 14.
e5 {[%clk 0:02:26.8]} 14... dxe5 {[%clk 0:02:10.7]} 15. fxe5 {[%clk 0:02:27.7]}
15... Nh5 {[%clk 0:02:12.3]} 16. Be4 {[%clk 0:02:20.3]} 16... Nc5 {[%clk
0:01:59.4]} 17. Bxb7 {[%clk 0:02:16.9]} 17... Qxb7 {[%clk 0:01:59.2]} 18. Qe3
{[%clk 0:02:09.1]} 18... Rad8 {[%clk 0:01:53.8]} 19. g4 {[%clk 0:02:05.9]} 19...
Ng7 {[%clk 0:01:49.5]} 20. Rf3 {[%clk 0:02:05.2]} 20... h5 {[%clk 0:01:48]} 21.
h3 {[%clk 0:02:02.4]} 21... Rd7 {[%clk 0:01:38.6]} 22. Ref1 {[%clk 0:01:57.1]}
22... a5 {[%clk 0:01:05.1]} 23. a3 {[%clk 0:01:53.2]} 23... Bh4 {[%clk
0:00:47.7]} 24. b4 {[%clk 0:01:42.1]} 24... axb4 {[%clk 0:00:48.6]} 25. axb4
{[%clk 0:01:43.5]} 25... Na6 {[%clk 0:00:38.4]} 26. Ne4 {[%clk 0:01:38.7]} 26...
Nxb4 {[%clk 0:00:33.4]} 27. Nf6+ {[%clk 0:01:26.7]} 27... Bxf6 {[%clk
0:00:29.4]} 28. exf6 {[%clk 0:01:28.6]} 28... e5 {[%clk 0:00:08.2]} 29. fxg7
{[%clk 0:01:16]} 29... Re8 {[%clk 0:00:09.2]} 30. Qh6 {[%clk 0:01:15.8]} 1-0

[Event "*** Titled Tuesday Blitz"]
[Site "Chess.com"]
[Date "2019.04.02"]
[Round "5"]
[White "Vice64"]
[Black "Shant_Sargsyan"]
[Result "0-1"]
[WhiteElo "2556"]
[BlackElo "2941"]
[TimeControl "180+2"]
[EndTime "15:02:13 PDT"]
[Termination "Shant_Sargsyan won by resignation"]

1. e4 {[%clk 0:03:01.9]} 1... c6 {[%clk 0:03:01.1]} 2. d4 {[%clk 0:02:58.6]}
2... d5 {[%clk 0:03:03]} 3. exd5 {[%clk 0:03:00.3]} 3... cxd5 {[%clk 0:03:04.1]}
4. Bd3 {[%clk 0:03:01.9]} 4... Nf6 {[%clk 0:03:06]} 5. c3 {[%clk 0:03:02.3]}
5... Nc6 {[%clk 0:03:07.3]} 6. Ne2 {[%clk 0:03:03.1]} 6... Bg4 {[%clk
0:03:05.6]} 7. O-O {[%clk 0:03:03.9]} 7... e6 {[%clk 0:03:06.7]} 8. f3 {[%clk
0:03:04.5]} 8... Bh5 {[%clk 0:03:07.6]} 9. Nf4 {[%clk 0:03:05.6]} 9... Bg6
{[%clk 0:03:09.2]} 10. Nxg6 {[%clk 0:03:06.7]} 10... hxg6 {[%clk 0:03:11.1]} 11.
Qe2 {[%clk 0:03:07.7]} 11... Bd6 {[%clk 0:03:12.2]} 12. f4 {[%clk 0:03:08.9]}
12... Qc7 {[%clk 0:03:10.9]} 13. Be3 {[%clk 0:03:05.6]} 13... O-O-O {[%clk
0:03:10.3]} 14. Nd2 {[%clk 0:03:06.1]} 14... Ne7 {[%clk 0:03:10.8]} 15. g3
{[%clk 0:03:05.6]} 15... Nf5 {[%clk 0:03:11.9]} 16. Nf3 {[%clk 0:02:59.9]} 16...
Ng4 {[%clk 0:03:07.5]} 17. Bxf5 {[%clk 0:02:54.2]} 17... gxf5 {[%clk 0:03:03.1]}
18. Rac1 {[%clk 0:02:50.2]} 18... Kb8 {[%clk 0:02:57.8]} 19. b3 {[%clk
0:02:51.1]} 19... g5 {[%clk 0:02:50.1]} 20. c4 {[%clk 0:02:37.9]} 20... gxf4
{[%clk 0:02:42.6]} 21. cxd5 {[%clk 0:02:38.8]} 21... Qa5 {[%clk 0:02:43.1]} 22.
Bxf4 {[%clk 0:02:28.5]} 22... Bxf4 {[%clk 0:02:43.8]} 23. gxf4 {[%clk
0:02:29.8]} 23... Rdg8 {[%clk 0:02:43]} 24. Kh1 {[%clk 0:02:22.3]} 24... Qxd5
{[%clk 0:02:43.4]} 25. Rc5 {[%clk 0:02:21.6]} 25... Qd6 {[%clk 0:02:31.6]} 26.
Qd2 {[%clk 0:02:04]} 26... Rh3 {[%clk 0:02:28.2]} 27. Rc2 {[%clk 0:01:51.4]}
27... Qd5 {[%clk 0:02:23.6]} 28. Qg2 {[%clk 0:01:30.8]} 28... Rgh8 {[%clk
0:02:24.3]} 29. Kg1 {[%clk 0:01:28.2]} 29... Ne3 {[%clk 0:02:25.2]} 30. Rc5
{[%clk 0:01:23]} 30... Qd6 {[%clk 0:02:07.5]} 31. Qe2 {[%clk 0:00:36.6]} 31...
Nxf1 {[%clk 0:02:08.7]} 32. Kxf1 {[%clk 0:00:35.7]} 32... Qxf4 {[%clk
0:02:08.9]} 33. Qe5+ {[%clk 0:00:27.7]} 33... Qxe5 {[%clk 0:02:10]} 34. Nxe5
{[%clk 0:00:29.2]} 34... Rxh2 {[%clk 0:02:10.7]} 35. d5 {[%clk 0:00:21.8]} 35...
Rxa2 {[%clk 0:02:07.2]} 36. Kg1 {[%clk 0:00:21.5]} 36... exd5 {[%clk 0:02:08.1]}
37. Nd7+ {[%clk 0:00:20.7]} 37... Ka8 {[%clk 0:02:07.4]} 38. Rxd5 {[%clk
0:00:22.6]} 38... Rg8+ {[%clk 0:02:05.2]} 39. Kf1 {[%clk 0:00:23]} 39... Rc8
{[%clk 0:02:05.6]} 40. Rd1 {[%clk 0:00:22.1]} 40... Rac2 {[%clk 0:01:53.5]} 41.
b4 {[%clk 0:00:22.8]} 41... Rc1 {[%clk 0:01:54.1]} 0-1